[Event "16th HSG Open-A 2022"]
[Site "Hilversum"]
[Date "2022.06.19"]
[Round "5.3"]
[White "Grutter, Tim"]
[Black "Pijpers, Arthur"]
[Result "0-1"]
[ECO "B76"]
[WhiteElo "2241"]
[BlackElo "2463"]
[Annotator "TA"]
[PlyCount "98"]
[EventDate "2022.06.17"]
[EventCountry "NED"]
[SourceTitle "playchess.com"]
[Source "ChessBase"]
[SourceQuality "1"]
[TimeControl "6600+10"]

{[%evp 26,98,37,37,33,29,25,22,20,20,20,20,20,26,21,25,30,28,30,33,55,52,55,64,54,62,54,0,61,32,32,28,85,82,84,0,0,0,295,0,0,0,0,0,0,-947,-931,-1106,-930,-712,-803,-2952,-2299,-29963,-11170,-29974,-29975,-29975,-29976,-29983,-29984,-29984,-29982,-29982,-29983,-29983,-29984,-29984,-29985,-29985,-29986,-29986,-29987,-29987,-29988]} 1. e4 {[%emt 0:00:02]} c5 {[%emt 0:00:04]} 2. Nf3 {[%emt 0:00:03]} d6 {[%emt 0:00:04]} 3. d4 {[%emt 0:00:03]} cxd4 {[%emt 0:00:06]} 4. Nxd4 {[%emt 0:00:02]} Nf6 {[%emt 0:00:06]} 5. Nc3 {[%emt 0:00:02]} g6 {[%emt 0:00:04]} 6. Be3 {[%emt 0:00:04]} Bg7 {[%emt 0:00:06]} 7. f3 {[%emt 0:00:03]} Nc6 {[%emt 0:00:05]} 8. Qd2 {[%emt 0:00:06]} O-O {[%emt 0:00:06]} 9. O-O-O {[%emt 0:00:04]} d5 {[%emt 0:00:30]} 10. exd5 {[%emt 0:00:10]} Nxd5 {[%emt 0:00:05]} 11. Nxc6 {[%emt 0:00:03]} bxc6 {[%emt 0:00:05]} 12. Bd4 {[%emt 0:00:04]} Bxd4 {[%emt 0:00:07]} 13. Qxd4 {[%emt 0:00:03]} Qb6 {[%emt 0:00:06]} 14. Na4 {[%emt 0:00:19]} Qa5 {[%emt 0:02:06][%cal Oe7e5] [#] Strongly threatening ...e5! B76: Sicilian Dragon: Yugoslav Attack, 9 g4 and 9 0-0-0.} 15. b3 {[%emt 0:00:06]} Qc7 {[%emt 0:00:04]} 16. Bc4 {[%emt 0:01:05]} Rd8 $1 {[%emt 0:11:36] The position is equal.} 17. g4 {[%emt 0:00:16] Inhibits Bf5.} Be6 {[%emt 0:00:22]} 18. Nc5 {[%emt 0:00:06]} Nf4 {[%emt 0:00:14]} 19. Nxe6 {[%emt 0:00:05]} Nxe6 {[%emt 0:00:06]} 20. Qc3 {[%emt 0:01:14]} Nf4 {[%emt 0:17:41]} 21. h4 {[%emt 0:09:09]} h6 {[%emt 0:00:05]} 22. Kb2 {[%emt 0:06:32] [#]} Rxd1 $146 {[%emt 0:04:18]} ({Predecessor:} 22... e6 23. h5 g5 24. Rhe1 Qe7 25. a3 Rab8 26. Bd3 Nd5 27. Qe5 Nb6 28. Ka2 Nd5 {½-½ (40) Kitson,K (2258)-Thompson,B (2325) ICCF email 2017}) 23. Rxd1 {[%emt 0:00:13]} Rd8 {[%emt 0:00:04]} 24. Rxd8+ {[%emt 0:01:51]} Qxd8 $14 {[%emt 0:00:04][%mdl 4096] Endgame KQB-KQN} 25. Qe3 {[%emt 0:03:13][%csl LRa7,LRf4]} Qc7 {[%emt 0:00:15]} 26. a4 {[%emt 0:02:07]} (26. Qc5 $14) 26... Kg7 {[%emt 0:03:44]} (26... c5 $1 $11) 27. a5 {[%emt 0:03:36]} c5 {[%emt 0:32:18]} 28. Qc3+ {[%emt 0:14:34]} e5 {[%emt 0:00:54]} (28... f6 $1 $11) 29. Qe3 {[%emt 0:01:00]} Ng2 {[%emt 0:08:29]} 30. Qe4 {[%emt 0:04:59]} ({Better is} 30. Qf2 $16 Nf4 31. Qd2) 30... Nxh4 $11 {[%emt 0:05:14]} 31. a6 {[%emt 0:00:49]} Qe7 {[%emt 0:00:10][%mdl 8192]} (31... Kf6 $1 $11) 32. Qb7 $2 {[%emt 0:00:20]} ({Only move:} 32. f4 $18) 32... Kf6 {[%emt 0:03:51]} 33. c3 {[%emt 0:00:51] aiming for b4.} Ng2 {[%emt 0:00:11]} 34. b4 {[%emt 0:07:54]} cxb4 {[%emt 0:00:04]} 35. Qxe7+ $4 {[%emt 0:01:55][%mdl 8192] Black converts the advantage convincingly.} (35. cxb4 $11 Qd6 36. Qxf7+ Kg5 37. Qxa7 Qxb4+ 38. Bb3 Qd2+ 39. Ka3 Qa5+ 40. Kb2 Qd2+ 41. Kb1 Qe1+ 42. Kb2 Qd2+) 35... Kxe7 $19 {[%emt 0:00:04]} 36. cxb4 $11 {[%emt 0:00:04] KB-KN} Kd6 {[%emt 0:09:31]} 37. Kc3 {[%emt 0:26:08]} h5 {[%emt 0:02:35] Threatens to win with ...Nf4.} 38. gxh5 {[%emt 0:02:52]} gxh5 {[%emt 0:00:05][%cal Bg6h5,Bh5h4,Bh4h3][%mdl 32]} 39. Kd2 {[%emt 0:01:23]} h4 {[%emt 0:00:24] ( -> ...h3)} 40. Ke2 {[%emt 0:00:25]} h3 {[%emt 0:00:05] Black mates.} 41. Kf2 {[%emt 0:00:05] [#]} Ne3 $1 {[%emt 0:00:05][%mdl 512]} 42. Bf1 {[%emt 0:00:11]} (42. Kg3 Nxc4) 42... Nxf1 {[%emt 0:00:05]} 43. Kxf1 {[%emt 0:00:02] KP-KP} Kc6 {[%emt 0:00:05]} 44. Kf2 {[%emt 0:00:07]} Kb5 {[%emt 0:00:05]} 45. Kg3 {[%emt 0:00:07]} Kxa6 {[%emt 0:00:04]} 46. Kxh3 {[%emt 0:00:06]} Kb5 {[%emt 0:00:03]} 47. Kg4 {[%emt 0:00:05]} Kxb4 {[%emt 0:00:04]} 48. Kf5 {[%emt 0:00:04]} a5 {[%emt 0:00:04][%cal Ba7a5,Ba5a4][%mdl 32]} 49. Kxe5 {[%emt 0:00:02]} a4 {[%emt 0:00:04] Weighted Error Value: White=0.73/Black=0.19 (very precise)} 0-1

[Event "16th HSG Open-A 2022"]
[Site "Hilversum"]
[Date "2022.06.19"]
[Round "5.4"]
[White "Konings, Frans"]
[Black "Leenhouts, Koen"]
[Result "0-1"]
[ECO "D95"]
[WhiteElo "2136"]
[BlackElo "2416"]
[Annotator "TA"]
[PlyCount "56"]
[EventDate "2022.06.17"]
[EventCountry "NED"]
[SourceTitle "playchess.com"]
[Source "ChessBase"]
[SourceQuality "1"]
[TimeControl "6600+10"]

{[%evp 14,56,-1,-15,-12,-22,-7,-16,0,-8,-1,-29,-29,-53,-48,-47,-48,-48,-36,-33,-34,-66,-68,-61,-34,-100,-96,-104,-108,-108,-110,-109,-108,-107,-102,-107,-108,-102,-88,-81,-93,-554,-527,-522,-498]} 1. Nf3 {[%emt 0:00:05]} Nf6 {[%emt 0:00:21]} 2. c4 {[%emt 0:00:05]} g6 {[%emt 0:00:37]} 3. d4 {[%emt 0:00:14]} Bg7 {[%emt 0:00:08]} 4. Nc3 {[%emt 0:00:54]} d5 {[%emt 0:00:09]} 5. e3 {[%emt 0:01:48]} c6 {[%emt 0:01:02]} 6. Qb3 {[%emt 0:00:11]} O-O {[%emt 0:00:22]} 7. Bd2 {[%emt 0:00:24]} e6 {[%emt 0:06:16]} 8. Rc1 {[%emt 0:00:37]} Nbd7 {[%emt 0:01:08] D95: Grünfeld: 4 Nf3 Bg7 5 e3 0-0 6 Qb3.} 9. Be2 {[%emt 0:03:27]} b6 {[%emt 0:02:29]} 10. O-O {[%emt 0:01:14]} Bb7 {[%emt 0:00:09] The position is equal.} 11. Rfd1 {[%emt 0:01:55]} Qe7 {[%emt 0:04:03] [#]} 12. Re1 $146 {[%emt 0:03:34]} ({Predecessor:} 12. Be1 Rfd8 13. h3 dxc4 14. Bxc4 c5 15. Nb5 Nd5 16. e4 a6 17. Na3 Nb4 18. dxc5 bxc5 {0-1 (28) Mamedyarov,S (2742)-Carlsen,M (2775) Moscow 2008}) 12... Rfd8 {[%emt 0:09:16]} 13. Bd3 {[%emt 0:00:31]} dxc4 {[%emt 0:02:47]} 14. Bxc4 {[%emt 0:00:54]} c5 {[%emt 0:00:11]} 15. Be2 {[%emt 0:09:40]} Rac8 {[%emt 0:04:22]} 16. Qa3 {[%emt 0:00:24]} a6 {[%emt 0:00:36]} 17. Na4 {[%emt 0:07:27]} (17. Bxa6 Ra8 18. Bxb7 Rxa3 19. bxa3 Nb8 $17) 17... Ne4 {[%emt 0:08:37]} 18. Red1 {[%emt 0:03:41]} Bf8 {[%emt 0:08:40] Black is more active.} 19. dxc5 {[%emt 0:03:00]} ({White should play} 19. Be1 $1 $15) 19... Nxd2 $17 {[%emt 0:02:16]} ({Reject} 19... Nexc5 $6 20. Bb4 $11) 20. Rxd2 {[%emt 0:00:58]} b5 {[%emt 0:00:53]} 21. Rxd7 {[%emt 0:02:51]} Qxd7 {[%emt 0:24:53]} ({Don't play} 21... Rxd7 $6 22. Nb6 $11) 22. Nb6 {[%emt 0:02:25][%csl LRc8,LRd7] [#]} Bxc5 $1 {[%emt 0:01:00][%mdl 512]} 23. Rxc5 {[%emt 0:01:31] [#]} Qd1+ {[%emt 0:00:13][%mdl 512]} 24. Bf1 {[%emt 0:00:05]} Rxc5 {[%emt 0:01:13]} 25. Qxc5 {[%emt 0:00:05]} Bxf3 $40 {[%emt 0:01:57][%mdl 128] Black has strong attack.} 26. gxf3 {[%emt 0:00:05]} Qxf3 {[%emt 0:00:55]} 27. Nd7 $2 {[%emt 0:02:02][%mdl 8192]} Qg4+ $19 {[%emt 0:00:07]} 28. Kh1 {[%emt 0:00:12] Strongly threatening Nf6+.} Qd1 {[%emt 0:00:53] Weighted Error Value: White=0.52/Black=0.03 (flawless)} 0-1

[Event "16th HSG Open-A 2022"]
[Site "Hilversum"]
[Date "2022.06.19"]
[Round "5.5"]
[White "Elgersma, Onno"]
[Black "Honkoop, Gilian"]
[Result "1-0"]
[ECO "C01"]
[WhiteElo "2303"]
[BlackElo "2197"]
[Annotator "TA"]
[PlyCount "63"]
[EventDate "2022.06.17"]
[EventCountry "NED"]
[SourceTitle "playchess.com"]
[Source "ChessBase"]
[SourceQuality "1"]
[TimeControl "6600+10"]

{[%evp 12,63,0,0,0,-5,0,0,0,0,14,0,10,0,16,0,133,53,293,76,254,0,49,42,32,0,0,0,0,0,0,0,24,0,43,5,16,29,29,27,253,112,383,379,529,535,572,583,1314,1283,1476,1300,1169,1135]} 1. c4 {[%emt 0:01:31]} e5 {[%emt 0:01:56]} 2. e3 {[%emt 0:05:17]} Nf6 {[%emt 0:03:19]} 3. d4 {[%emt 0:05:44]} exd4 {[%emt 0:01:17]} 4. exd4 {[%emt 0:00:05]} d5 {[%emt 0:00:30]} 5. Nc3 {[%emt 0:00:17]} Be7 {[%emt 0:08:23]} 6. Nf3 {[%emt 0:13:15]} O-O {[%emt 0:00:12]} 7. h3 {[%emt 0:04:36]} Be6 {[%emt 0:07:05] C01: French: Exchange Variation.} 8. cxd5 {[%emt 0:02:24]} Nxd5 {[%emt 0:00:10]} 9. Bd3 {[%emt 0:00:13]} Nc6 {[%emt 0:06:42] The position is equal.} 10. O-O {[%emt 0:00:27]} h6 {[%emt 0:01:54] [#]} 11. Bb1 $146 {[%emt 0:03:31]} ({Predecessor:} 11. a3 Nxc3 12. bxc3 Bf6 13. Re1 Re8 14. Rb1 Bd5 15. c4 Bxf3 16. Rxe8+ Qxe8 17. Qxf3 Bxd4 {0-1 (39) Sardi,A (1590)-Veljacic,C (1915) Montevideo 2019}) 11... Nf6 {[%emt 0:06:13]} 12. Re1 {[%emt 0:10:41]} Re8 {[%emt 0:03:50]} 13. a3 {[%emt 0:04:38]} Na5 {[%emt 0:20:17]} (13... Qd7 $11) 14. Bc2 {[%emt 0:05:38]} (14. b4 $16 Nc6 15. Bb2) 14... Nc4 {[%emt 0:00:22] [#]} ({Black should play} 14... Qd6 $14) 15. Qd3 $2 {[%emt 0:02:00]} (15. Rxe6 $1 $18 {[%mdl 512] has better winning chances.} fxe6 16. Qe2 Bxa3 17. bxa3) 15... Nd6 $2 {[%emt 0:03:36] [#]} (15... Qd7 $16) 16. Qd1 $2 {[%emt 0:10:29]} (16. Rxe6 $1 $18 {[%mdl 512]} fxe6 17. Bxh6) 16... Bf5 {[%emt 0:10:51]} (16... Nc4 $11) 17. Bb3 $14 {[%emt 0:03:13]} Bf8 {[%emt 0:09:18]} 18. Ne5 {[%emt 0:01:22]} c6 {[%emt 0:01:47]} 19. Bf4 {[%emt 0:10:30]} Be6 {[%emt 0:01:43]} 20. Bc2 {[%emt 0:04:28]} Bf5 {[%emt 0:11:50]} 21. Ba4 {[%emt 0:02:53]} Rc8 {[%emt 0:04:55]} 22. Rc1 {[%emt 0:02:25]} Nfe4 {[%emt 0:02:08][%cal Bf6e4,Be4g5,Bg5e6][%mdl 32]} 23. Bb3 {[%emt 0:02:53][%cal Oe1e4] Black must now prevent Rxe4!} Ng5 {[%emt 0:02:03][%cal Of5h3]} 24. h4 {[%emt 0:06:38]} Ne6 {[%emt 0:00:21]} 25. Bg3 {[%emt 0:00:02]} Bh7 $2 {[%emt 0:02:52] [#]} (25... a5 $11 {and Black has nothing to worry.}) 26. Qh5 {[%emt 0:01:26]} (26. Nxf7 $1 $18 {[%mdl 512]} Kxf7 27. d5) 26... Rc7 $2 {[%emt 0:00:37][%mdl 8192] [#]} (26... Qf6 $16 {was called for.}) 27. Nxf7 $1 $18 {[%emt 0:01:09][%mdl 512]} Nxf7 {[%emt 0:00:29]} (27... Rxf7 28. Rxe6) 28. Bxc7 {[%emt 0:00:25] White is clearly winning.} ({Not} 28. Bxe6 Rce7 $16) 28... Qxc7 {[%emt 0:00:00]} 29. Bxe6 {[%emt 0:00:33][%cal Oc3d5] aiming for Nd5!} Re7 {[%emt 0:00:02] [#]} 30. Nd5 $1 {[%emt 0:00:18] Against Qf4} cxd5 {[%emt 0:00:16]} (30... Qd8 31. Nxe7+) 31. Rxc7 {[%emt 0:00:05]} Rxc7 {[%emt 0:00:01]} 32. Qxd5 {[%emt 0:00:34] Weighted Error Value: White=0.46/Black=0.91} 1-0

[Event "16th HSG Open-A 2022"]
[Site "Hilversum"]
[Date "2022.06.19"]
[Round "5.6"]
[White "Berrevoets, Jeroen"]
[Black "Wiersma, Eelke"]
[Result "0-1"]
[ECO "B11"]
[WhiteElo "2035"]
[BlackElo "2299"]
[Annotator "TA"]
[PlyCount "58"]
[EventDate "2022.06.17"]
[EventCountry "NED"]
[SourceTitle "playchess.com"]
[Source "ChessBase"]
[SourceQuality "1"]
[TimeControl "6600+10"]

{[%evp 12,58,8,2,10,-43,-8,-38,-13,-49,-18,-116,-114,-69,-21,-120,-35,-43,-37,-125,-128,-342,-337,-309,-299,-300,-300,-295,-293,-576,-377,-449,-438,-416,-420,-954,-995,-29972,-29964,-2450,-29977,-2938,-2670,-29988,-29989,-29989,-29990,-29989,-979]} 1. e4 {[%emt 0:00:11]} c6 {[%emt 0:00:08]} 2. Nc3 {[%emt 0:00:08]} d5 {[%emt 0:00:10]} 3. Nf3 {[%emt 0:00:05]} Bg4 {[%emt 0:00:11]} 4. h3 {[%emt 0:00:18]} Bxf3 {[%emt 0:00:08]} 5. Qxf3 {[%emt 0:00:07]} e6 {[%emt 0:00:09]} 6. d3 {[%emt 0:00:37]} Nd7 {[%emt 0:00:10]} 7. Bd2 {[%emt 0:00:14]} Qb6 {[%emt 0:01:18] [#] Recently 7...g6 got a lot of attention. B11: Caro-Kann: Two Knights Variation.} 8. a4 $146 {[%emt 0:10:32]} ({White should try} 8. O-O-O $11) ({Predecessor:} 8. O-O-O Bd6 9. h4 Ne7 10. h5 Be5 11. h6 g6 12. Na4 Qc7 13. Nc3 Rc8 14. Ne2 c5 15. exd5 Nxd5 {0-1 (25) Liang,A (2572)-Mamedyarov,S (2804) Chess.com INT 2018}) 8... Bb4 {[%emt 0:09:00]} 9. exd5 {[%emt 0:05:23]} cxd5 {[%emt 0:01:35] Black is slightly better.} 10. Qg3 {[%emt 0:01:12]} Ngf6 {[%emt 0:04:17] Strongly threatening ...d4.} 11. Qxg7 {[%emt 0:10:39]} (11. Be2 $1 $11) 11... Rg8 $17 {[%emt 0:00:32]} 12. Qh6 {[%emt 0:00:03]} Rg6 {[%emt 0:06:15]} (12... d4 $15 {should be considered.} 13. Nd1 Rg6) 13. Qf4 {[%emt 0:06:18] [#]} (13. a5 $1 $11 Bxa5 14. Qf4) 13... d4 {[%emt 0:04:35]} (13... e5 $1 $17 {[%cal Re5f4]} 14. a5 Qc5) 14. a5 $1 $15 {[%emt 0:07:21]} Qc5 $36 {[%emt 0:09:47][%mdl 2048] Black has the initiative.} 15. Ne4 {[%emt 0:13:13]} (15. Ne2 $1 $15) 15... Nxe4 $17 {[%emt 0:02:57]} 16. Qxe4 $2 {[%emt 0:01:47] White does not recover from this.} (16. dxe4 $17 {was forced.} Qxc2 17. Bxb4 Qxb2 18. Rd1 (18. Ra4 $2 Qb1+ 19. Kd2 Qb2+ 20. Ke1 Rc8 $19) 18... Qxb4+ 19. Qd2 Qxd2+ 20. Rxd2) 16... Bxd2+ $19 {[%emt 0:05:25]} 17. Kxd2 {[%emt 0:00:09]} Rc8 {[%emt 0:02:03]} 18. Rc1 {[%emt 0:03:41]} Qb4+ {[%emt 0:02:00]} ({Not} 18... Qxa5+ $2 19. Kd1 Qb6 20. Qe2 $19) 19. Kd1 {[%emt 0:00:51]} Qxb2 {[%emt 0:00:45] ...Nc5 is the strong threat.} 20. Be2 $2 {[%emt 0:01:28]} (20. Qe2) 20... Nc5 {[%emt 0:01:57][%cal Bd7c5,Bc5a4,Ba4c3,Bc3b1][%mdl 32]} 21. Qe5 {[%emt 0:02:35]} Ke7 {[%emt 0:01:05][%cal Oc5b3] And now ...Nb3! would win.} 22. Qf4 {[%emt 0:03:14]} Na4 {[%emt 0:02:37] Active counter play!} 23. Qh4+ {[%emt 0:05:29]} (23. Bf3 $142 Nc3+ 24. Ke1) 23... Rf6 {[%emt 0:03:25] ( -> ...Nc3+)} 24. Bf3 {[%emt 0:03:24]} Nc3+ {[%emt 0:01:37]} 25. Kd2 {[%emt 0:00:09] [#]} Nb1+ $1 {[%emt 0:01:44][%mdl 512]} 26. Kd1 {[%emt 0:05:50] [#]} Qc3 $1 {[%emt 0:01:32][%csl Gb1][%cal Rc3d2]} 27. Rxb1 {[%emt 0:05:10]} (27. Qg5 h6) 27... Qxc2+ {[%emt 0:00:11] Black mates.} 28. Ke1 {[%emt 0:00:02]} Qxb1+ {[%emt 0:00:21]} 29. Bd1 {[%emt 0:00:03]} Qxd3 {[%emt 0:01:11] Weighted Error Value: White=1.09/Black=0.18 (very precise)} (29... Rc1 $142 30. Qg4 Qc2 31. Rf1 Qc3+ 32. Ke2 Rb1 33. Qf4 Rxf4 34. g3 Rb2+ 35. Bc2 Rxc2+ 36. Kd1 Qd2#) 0-1

[Event "16th HSG Open-A 2022"]
[Site "Hilversum"]
[Date "2022.06.19"]
[Round "5.7"]
[White "Bosboom, Ardin"]
[Black "Pham, Khoi"]
[Result "0-1"]
[ECO "D13"]
[WhiteElo "2093"]
[BlackElo "2291"]
[Annotator "TA"]
[PlyCount "82"]
[EventDate "2022.06.17"]
[EventCountry "NED"]
[SourceTitle "playchess.com"]
[Source "ChessBase"]
[SourceQuality "1"]
[TimeControl "6600+10"]

{[%evp 15,82,20,22,29,20,27,50,47,63,48,44,55,67,37,38,12,26,10,3,-25,17,0,25,-14,-9,-70,-54,-55,-56,-47,-52,-46,-53,-45,-34,-59,-51,-67,-64,-59,-66,-103,-107,-106,-96,-108,-108,-477,-482,-810,-808,-985,-985,-2818,-2247,-29989,-1981,-29977,-29967,-6273,-6218,-29983,-29983,-29983,-29975,-29994,-29995,-29998,-29989]} 1. d4 {[%emt 0:00:10]} d5 {[%emt 0:03:00]} 2. c4 {[%emt 0:00:06]} c6 {[%emt 0:00:05]} 3. cxd5 {[%emt 0:00:17]} cxd5 {[%emt 0:00:09]} 4. Nc3 {[%emt 0:00:19]} Nf6 {[%emt 0:00:07]} 5. Bf4 {[%emt 0:00:06]} Nc6 {[%emt 0:00:07]} 6. e3 {[%emt 0:00:17]} a6 {[%emt 0:01:18]} 7. Be2 {[%emt 0:00:26]} Bf5 {[%emt 0:00:47]} 8. Nf3 {[%emt 0:00:22]} e6 {[%emt 0:00:18]} 9. Qb3 {[%emt 0:00:56] D13: Slav Defence: Exchange variation without ...Bf5.} Ra7 {[%emt 0:02:18]} 10. O-O {[%emt 0:01:37]} Bd6 {[%emt 0:00:06]} 11. Ne5 {[%emt 0:03:33] White is slightly better.} Bxe5 {[%emt 0:05:21] [#]} 12. Bxe5 $146 {[%emt 0:01:55]} (12. dxe5 Nd7 $11) ({Predecessor:} 12. dxe5 Nd7 13. Rfd1 O-O 14. Rac1 Qe7 15. Na4 Ndxe5 16. Nb6 Nd7 17. Nxd7 Qxd7 18. Qb6 {1-0 (67) Salimova,N (2403)-Richter,N (2381) Chess.com INT 2022}) 12... Nxe5 {[%emt 0:01:31]} 13. dxe5 {[%emt 0:00:05]} Nd7 {[%emt 0:01:03]} 14. f4 {[%emt 0:03:54] Hoping for g4.} O-O {[%emt 0:02:31]} 15. g4 {[%emt 0:02:29]} Bg6 {[%emt 0:02:05]} 16. Rad1 {[%emt 0:16:53] Black should prevent f5.} b5 {[%emt 0:06:26]} 17. Kh1 {[%emt 0:05:11]} (17. Qb4 {is interesting.} h6 18. f5 Bh7 19. fxe6 fxe6 20. Qd6) 17... f6 {[%emt 0:05:17]} 18. f5 {[%emt 0:14:12]} Bf7 {[%emt 0:02:21]} 19. fxe6 {[%emt 0:00:06]} Bxe6 {[%emt 0:00:05]} 20. Bf3 {[%emt 0:00:06]} (20. exf6 $11 Nxf6 21. g5) 20... Nxe5 {[%emt 0:04:31]} 21. Bxd5 {[%emt 0:00:36]} Bxd5+ {[%emt 0:00:09]} 22. Nxd5 {[%emt 0:06:31]} Qa8 {[%emt 0:02:06]} 23. e4 {[%emt 0:00:24]} Kh8 {[%emt 0:00:12]} 24. Qg3 {[%emt 0:02:34]} Raf7 {[%emt 0:12:13]} 25. Rfe1 {[%emt 0:08:57]} Re8 {[%emt 0:05:51]} 26. Rc1 {[%emt 0:07:25]} Qd8 {[%emt 0:05:06] Against Nc7} 27. Rc3 {[%emt 0:03:20]} Rd7 {[%emt 0:02:33][%cal Oe5g4,Bf7d7,Bd7d5,Bd5e5,Be5e2][%mdl 32]} 28. Rec1 {[%emt 0:05:01][%cal Og4g5]} Nc4 {[%emt 0:03:42]} 29. Qg2 {[%emt 0:07:32]} Nd6 {[%emt 0:02:44]} 30. Rc6 {[%emt 0:04:06]} h6 {[%emt 0:11:25]} ({Don't play} 30... Nxe4 $6 31. Rc8 Rxd5 32. Rxd8 Rdxd8 33. Qf3 $11) 31. e5 $2 {[%emt 0:05:38][%mdl 8192] Now White is beyond hope.} (31. b3 $17 {is more resistant.}) 31... Nc4 $19 {[%emt 0:05:13]} 32. b3 {[%emt 0:07:47]} (32. Nxf6 $142 gxf6 33. Qf3) 32... Rxd5 {[%emt 0:02:22]} 33. bxc4 {[%emt 0:00:06]} Rdxe5 {[%emt 0:00:09] [#] ...Re1+ is the strong threat.} 34. Qf2 {[%emt 0:02:04] Inhibits Re1+.} Re2 {[%emt 0:00:34]} 35. Qf1 {[%emt 0:00:40]} Qd2 {[%emt 0:00:23]} (35... Qb8 $142 36. Qh3 Qf4 37. Rf1 Re1 38. Kg1 Qd4+ 39. Kh1 Qf2 40. Rxf6 Qxf6 41. Qd3 Qf2 42. h4 Rxf1+ 43. Qxf1 Qxf1+ 44. Kh2 Re3 45. cxb5 Rh3#) 36. Rd1 {[%emt 0:00:17]} Qe3 {[%emt 0:02:59]} 37. Rxf6 {[%emt 0:00:09]} Qe4+ {[%emt 0:01:07]} ({Worse is} 37... gxf6 38. Qxf6+ Kh7 39. Qf7+ Kh8 40. Qf6+ Kh7 41. Qf7+ Kh8 42. Qf6+ $11) 38. Rf3 {[%emt 0:00:01]} Re3 {[%emt 0:00:38] Black mates.} 39. Kg2 {[%emt 0:00:08]} Rf8 {[%emt 0:00:12][%cal Be8f8,Bf8f3,Bf3e3][%mdl 32]} 40. Rd3 {[%emt 0:00:20]} Rfxf3 {[%emt 0:00:16]} 41. Rxe3 {[%emt 0:00:02]} Rxe3+ {[%emt 0:00:11] Weighted Error Value: White=1.09/Black=0.19 (very precise)} ({Inferior is} 41... Qxe3 42. Qxf3 Qxf3+ 43. Kxf3 bxc4 44. Ke4 $19) 0-1

[Event "16th HSG Open-A 2022"]
[Site "Hilversum"]
[Date "2022.06.19"]
[Round "5.8"]
[White "De Groote, Ewoud"]
[Black "De Winter, Arthur"]
[Result "1/2-1/2"]
[ECO "A67"]
[WhiteElo "2230"]
[BlackElo "2090"]
[Annotator "TA"]
[PlyCount "81"]
[EventDate "2022.06.17"]
[EventCountry "NED"]
[SourceTitle "playchess.com"]
[Source "ChessBase"]
[SourceQuality "1"]
[TimeControl "6600+10"]

{[%evp 25,81,44,45,43,36,30,52,43,49,49,69,23,33,27,61,9,6,14,0,0,0,0,0,0,26,43,37,-28,28,0,0,0,0,0,0,0,97,83,80,84,77,44,37,19,86,99,343,324,279,43,268,20,20,20,34,25,80,54]} 1. d4 {[%emt 0:00:04]} Nf6 {[%emt 0:00:22]} 2. c4 {[%emt 0:00:05]} c5 {[%emt 0:00:32]} 3. d5 {[%emt 0:00:50]} e6 {[%emt 0:00:05]} 4. Nc3 {[%emt 0:01:18]} exd5 {[%emt 0:00:05]} 5. cxd5 {[%emt 0:00:05]} d6 {[%emt 0:00:03]} 6. e4 {[%emt 0:02:03]} g6 {[%emt 0:00:06]} 7. f4 {[%emt 0:03:16]} Bg7 {[%emt 0:00:07]} 8. Bb5+ {[%emt 0:02:16]} Nfd7 {[%emt 0:00:21]} 9. a4 {[%emt 0:02:38]} Qh4+ {[%emt 0:00:25]} 10. g3 {[%emt 0:00:42]} Qe7 {[%emt 0:00:04]} 11. Nf3 {[%emt 0:03:19]} O-O {[%emt 0:00:44]} 12. O-O {[%emt 0:05:03]} Na6 {[%emt 0:00:47]} 13. Re1 {[%emt 0:13:47]} Nb4 {[%emt 0:03:05]} 14. Bf1 {[%emt 0:06:35] A67: Modern Benoni: Taimanov Variation.} b6 {[%emt 0:08:25] [#]} 15. Bd2 $146 {[%emt 0:19:37]} ({Predecessor:} 15. Nd2 Bd4+ 16. Kg2 Nf6 17. h3 Qd7 18. g4 h5 19. Bb5 Qd8 20. g5 a6 21. Bf1 Qd7 {1-0 (72) Loiacono,A (2304)-Boraso,A (2271) Bassano del Grappa 2020}) 15... Ba6 {[%emt 0:10:22]} 16. Bxa6 {[%emt 0:03:24] White is slightly better.} Nxa6 {[%emt 0:00:09]} 17. Qb3 {[%emt 0:02:46]} Rfc8 {[%emt 0:08:30]} 18. Qc4 {[%emt 0:04:36] White is more active.} (18. Nd1 $14) 18... Nb4 $11 {[%emt 0:02:18]} 19. Nd1 {[%emt 0:07:10]} a6 {[%emt 0:31:22][%cal Ob6b5]} 20. Rc1 {[%emt 0:08:34]} (20. Bxb4 $14 cxb4 21. Qxb4) 20... Qe8 {[%emt 0:07:00][%cal Ob6b5]} 21. Qe2 {[%emt 0:10:05] Against b5} (21. Bc3 {feels hotter.} b5 22. axb5 Nb6 23. Qf1) 21... Nf6 {[%emt 0:09:30]} 22. Bxb4 {[%emt 0:06:22]} cxb4 {[%emt 0:00:06]} 23. Rxc8 {[%emt 0:01:02]} Qxc8 {[%emt 0:01:47]} 24. Nf2 {[%emt 0:00:34]} Qd7 {[%emt 0:09:22]} 25. Qc4 $36 {[%emt 0:02:08][%mdl 2048] White is more active.} a5 {[%emt 0:01:44]} 26. Qc6 {[%emt 0:02:02]} (26. Nd4 $14) 26... Qd8 {[%emt 0:09:03]} (26... Qxc6 $142 27. dxc6 Rc8) 27. Rc1 {[%emt 0:00:26]} (27. Qb5 $5 {[%cal Rf3d4]}) 27... Nd7 {[%emt 0:00:58] Inhibits e5.} 28. Qxd6 {[%emt 0:00:35] aiming for Nd3.} Nc5 {[%emt 0:00:12] Inhibits Nd3.} 29. Qxd8+ {[%emt 0:01:47]} Rxd8 {[%emt 0:00:04]} 30. Ne5 {[%emt 0:00:24] Strongly threatening Nc6.} Re8 {[%emt 0:04:09]} (30... Kf8 $11) 31. Nc4 {[%emt 0:00:32] And now e5 would win.} Nxe4 {[%emt 0:00:12]} 32. Nxe4 {[%emt 0:00:05]} Rxe4 $16 {[%emt 0:00:01][%mdl 4096] Endgame KRB-KRN} 33. b3 {[%emt 0:00:35]} Kf8 {[%emt 0:01:57]} 34. Kf2 {[%emt 0:00:18] Hoping for Kf3.} Rd4 {[%emt 0:00:09]} (34... Bd4+ $11 35. Kf3 f5) 35. Nxb6 {[%emt 0:00:09] Rc8+ is the strong threat.} Rd3 $2 {[%emt 0:00:01]} (35... Rd2+ $16 36. Ke3 Bc3) 36. Ke2 $18 {[%emt 0:00:23]} Rxb3 {[%emt 0:00:09]} 37. d6 $2 {[%emt 0:00:08]} (37. Nc4 Ra3 $1 $11) (37. Rc8+ $1 $18 Ke7 38. Rc7+ Ke8 39. d6 (39. Nc4 Bd4 $16)) 37... Bc3 $2 {[%emt 0:00:31] [#]} ({Better is} 37... Rb2+ $1 $14 38. Kd3 Rb3+ 39. Kc4 Rc3+ 40. Rxc3 bxc3) 38. Nd5 $2 {[%emt 0:00:24]} ({Not} 38. Nc4 Ke8 $16) (38. Rd1 $1 $18) 38... Ke8 {[%emt 0:00:07]} 39. Nxc3 {[%emt 0:00:15]} bxc3 {[%emt 0:00:29]} (39... Rxc3 40. Rxc3 bxc3 41. Kd3 $18) 40. Kd3 {[%emt 0:00:07]} Rb6 {[%emt 0:00:08]} (40... Rb4 $11 {keeps the balance.}) 41. Rxc3 {[%emt 0:00:06] Weighted Error Value: White=0.33/Black=0.54} 1/2-1/2